bitfinex/quotes_BTCUSD_20230109
["timestamp","ask_amount","ask_price","bid_price","bid_amount"]
[1673226003104,0.43541398,17202.0,17200.0,0.98463107]
[1673226003651,0.17423519,17202.0,17200.0,0.98463107]
[1673226004431,0.43541398,17202.0,17200.0,0.98463107]
[1673226004694,0.17411919,17201.0,17200.0,0.98463107]
[1673226005161,0.43541398,17202.0,17200.0,0.98504176]
[1673226005168,0.17423519,17202.0,17200.0,0.98504176]
[1673226005419,0.43541398,17202.0,17201.0,0.365184]
[1673226005682,0.43541398,17202.0,17200.0,0.98504176]
[1673226005937,0.83541398,17202.0,17200.0,0.98504176]
[1673226006196,1.17363898,17202.0,17200.0,0.98504176]
[1673226006447,0.82541398,17202.0,17200.0,0.98504176]
[1673226006728,0.82541398,17202.0,17201.0,0.08746125]
[1673226006981,0.26117879,17203.0,17201.0,0.08746125]
[1673226007223,0.60940379,17203.0,17202.0,0.00041064]
[1673226007489,0.60940379,17203.0,17201.0,0.08746125]
[1673226007729,0.66117879,17202.0,17201.0,0.08746125]
[1673226008476,1.00940379,17202.0,17201.0,0.08746125]
[1673226008740,0.66117879,17202.0,17201.0,0.08746125]
[1673226008973,1.00940379,17202.0,17201.0,0.08746125]
[1673226009224,1.44470692,17202.0,17201.0,0.08746125]
[1673226009470,0.60943951,17202.0,17201.0,0.08746125]
[1673226009719,0.26121451,17202.0,17201.0,0.08746125]
[1673226009979,0.60943951,17202.0,17201.0,0.08746125]
[1673226010226,0.78352813,17202.0,17201.0,0.08746125]
[1673226010987,0.60944932,17202.0,17201.0,0.08746125]
[1673226011232,0.60942923,17202.0,17201.0,0.08746125]
[1673226012501,0.60942923,17202.0,17200.0,0.89089094]
[1673226012765,1.18361443,17201.0,17200.0,0.89089094]
[1673226013018,1.18361443,17201.0,17200.0,0.88089094]
[1673226013019,2.34633643,17201.0,17200.0,0.88089094]
[1673226013311,1.562722,17201.0,17200.0,0.88089094]
[1673226013837,0.51979123,17201.0,17200.0,1.11856883]
[1673226014099,0.51979123,17201.0,17200.0,1.46228594]
[1673226014100,0.60952927,17201.0,17200.0,1.46228594]
[1673226014359,0.26122683,17201.0,17200.0,1.55564671]
[1673226014615,0.26122683,17201.0,17200.0,0.97425171]
[1673226014884,0.60952927,17201.0,17200.0,0.97425171]
[1673226015205,0.60952927,17201.0,17200.0,0.88089094]
[1673226015440,0.694161,17201.0,17200.0,0.88089094]
[1673226015689,2.18405529,17201.0,17200.0,0.88089094]
[1673226015934,1.66426406,17201.0,17200.0,0.88089094]
[1673226016175,1.66426406,17201.0,17200.0,0.88130163]
[1673226016662,1.66426406,17201.0,17200.0,0.88089094]
[1673226017660,2.18405529,17201.0,17200.0,0.88089094]
[1673226017907,2.76541629,17201.0,17200.0,0.88089094]
[1673226018880,3.34677729,17201.0,17200.0,0.88089094]
[1673226020145,2.82698606,17201.0,17200.0,0.88089094]
[1673226020656,3.34952099,17201.0,17200.0,0.88089094]
[1673226020899,10.92768606,17201.0,17200.0,0.88089094]
[1673226022367,10.9430997,17201.0,17200.0,0.98089094]
[1673226023110,11.52832929,17201.0,17200.0,0.98089094]
[1673226023378,11.82832929,17201.0,17200.0,0.98089094]
[1673226023596,11.4771997,17201.0,17200.0,0.98089094]
[1673226023848,1.05937957,17200.0,17193.0,0.581606]
[1673226024104,0.694265,17198.0,17197.0,0.04805657]
[1673226024348,0.694265,17198.0,17197.0,0.20604]
[1673226024349,0.78370925,17198.0,17197.0,0.20604]
[1673226024598,0.60954284,17198.0,17195.0,1.163103]
[1673226024850,0.43535623,17198.0,17195.0,1.163103]
[1673226025093,0.17412861,17198.0,17195.0,1.163103]
[1673226025387,0.83144583,17199.0,17196.0,0.00104402]
[1673226025644,0.48313061,17199.0,17197.0,0.365184]
[1673226025885,0.48313061,17199.0,17198.0,0.01955412]
[1673226026133,0.04777438,17199.0,17198.0,0.80705612]
[1673226026391,0.43535623,17200.0,17198.0,0.80810002]
[1673226027127,0.43535623,17200.0,17198.0,1.38956202]
[1673226027364,0.43605623,17200.0,17198.0,1.38956202]
[1673226027607,0.17412861,17199.0,17198.0,1.38851812]
[1673226028103,0.17412861,17199.0,17198.0,1.38956202]
[1673226028350,0.17412861,17199.0,17198.0,1.18247812]
[1673226028590,0.43535623,17199.0,17198.0,1.18247812]
[1673226029087,0.60954284,17199.0,17198.0,1.18396594]
[1673226029331,0.43537539,17199.0,17198.0,1.18396594]
[1673226030068,0.17414777,17199.0,17198.0,1.18396594]
[1673226030539,0.43607539,17200.0,17198.0,1.18396594]
[1673226032678,0.43607539,17200.0,17198.0,1.18247812]
[1673226032970,0.17414777,17199.0,17198.0,1.18247812]
[1673226034027,0.83537539,17199.0,17198.0,1.18247812]
[1673226034291,0.43537539,17199.0,17198.0,1.18247812]
[1673226034817,0.60954284,17199.0,17198.0,0.60101612]
[1673226035322,0.60954284,17199.0,17198.0,0.01955412]
[1673226035323,0.78370925,17199.0,17198.0,0.01955412]
[1673226035604,0.60962433,17199.0,17198.0,0.01955412]
[1673226035879,0.55962433,17199.0,17198.0,0.01962851]
[1673226036136,0.43550977,17199.0,17198.0,0.01962851]
[1673226036656,0.43550977,17199.0,17198.0,0.02097127]
[1673226036951,0.26130911,17199.0,17198.0,0.01955412]
[1673226037228,0.43551795,17199.0,17198.0,0.01955412]
[1673226037477,0.43551795,17199.0,17198.0,1.18247812]
[1673226037976,0.26130911,17199.0,17198.0,0.60101612]
[1673226038774,0.43609403,17200.0,17199.0,0.03869089]
[1673226039029,0.42609403,17200.0,17199.0,0.03869089]
[1673226039534,0.82609403,17200.0,17199.0,0.03869089]
[1673226040894,0.4,17200.0,17199.0,0.03869089]
[1673226042140,2.34651279,17201.0,17199.0,0.03869089]
[1673226044520,0.4,17200.0,17199.0,0.03869089]
[1673226044778,0.981395,17200.0,17199.0,0.03869089]
[1673226045053,2.05009115,17200.0,17199.0,0.03869089]
[1673226046367,2.63148615,17200.0,17199.0,0.03869089]
[1673226046874,1.46869615,17200.0,17199.0,0.03869089]
[1673226049387,0.94619701,17200.0,17199.0,0.03869089]
[1673226050625,1.3818789,17200.0,17199.0,0.03869089]
[1673226051158,0.94619701,17200.0,17199.0,0.03869089]
[1673226051384,1.46869615,17200.0,17199.0,0.03869089]
[1673226051630,1.46869615,17200.0,17199.0,0.03369089]
[1673226053874,2.05009115,17200.0,17199.0,0.03369089]
[1673226054382,10.15009115,17200.0,17199.0,0.03369089]
[1673226055460,9.62759201,17200.0,17199.0,0.03369089]
[1673226056752,10.15064985,17200.0,17199.0,0.03369089]
[1673226058508,9.62759201,17200.0,17199.0,0.03369089]
[1673226059021,10.15061114,17200.0,17199.0,0.03369089]
[1673226059268,9.02301913,17200.0,17199.0,0.23973089]
[1673226059537,8.62301913,17200.0,17199.0,0.49913267]
[1673226059785,8.88442531,17200.0,17199.0,0.26131328]
[1673226060041,8.71010612,17200.0,17199.0,0.26131328]
[1673226060303,8.71010612,17200.0,17199.0,1.20806778]
[1673226060544,8.71010612,17200.0,17199.0,0.84288378]
[1673226060791,8.88441126,17200.0,17199.0,0.84288378]
[1673226061045,8.88441172,17200.0,17199.0,0.84288378]
[1673226061604,8.88442531,17200.0,17199.0,0.63670228]
[1673226062408,8.85073442,17200.0,17199.0,0.60301139]
[1673226062716,8.85069386,17200.0,17199.0,1.18444039]
[1673226062972,8.50206039,17200.0,17199.0,1.18444039]
[1673226063463,8.50206039,17200.0,17199.0,1.18490496]
[1673226063726,0.14060965,17200.0,17199.0,1.76633396]
[1673226064026,0.14060965,17200.0,17199.0,2.13151796]
[1673226064826,0.61078421,17201.0,17199.0,2.10993557]
[1673226064827,0.26215074,17201.0,17199.0,2.10993557]
[1673226065086,0.26215074,17201.0,17200.0,0.50091748]
[1673226065087,0.0007,17201.0,17200.0,0.50091748]
[1673226065349,0.0007,17201.0,17200.0,1.66370748]
[1673226065866,0.0007,17201.0,17200.0,2.52132466]
[1673226066110,0.0007,17201.0,17200.0,2.98544801]
[1673226066916,0.0007,17201.0,17200.0,2.47338141]
[1673226067653,0.0007,17201.0,17200.0,2.24878141]
[1673226068429,0.0007,17201.0,17200.0,2.76084801]
[1673226068688,0.0007,17201.0,17200.0,3.45404301]
[1673226069226,0.0007,17201.0,17200.0,3.7332356]
[1673226069431,1e-08,17201.0,17200.0,3.45525236]
[1673226069670,1e-08,17201.0,17200.0,3.56805236]
[1673226070170,1e-08,17201.0,17200.0,3.4342356]
[1673226071177,1e-08,17201.0,17200.0,3.7342356]
[1673226071419,1e-08,17201.0,17200.0,3.4342356]
[1673226073187,1e-08,17201.0,17200.0,2.922169]
[1673226073432,1e-08,17201.0,17200.0,2.809369]
[1673226074421,1e-08,17201.0,17200.0,3.3214356]
[1673226074676,1e-08,17201.0,17200.0,2.809369]
[1673226075498,1e-08,17201.0,17200.0,3.3214356]
[1673226076781,1e-08,17201.0,17200.0,2.809369]
[1673226080295,1e-08,17201.0,17200.0,10.309369]
[1673226080577,1e-08,17201.0,17200.0,10.8214356]
[1673226081072,1e-08,17201.0,17200.0,3.3214356]
[1673226081599,1e-08,17201.0,17200.0,10.8214356]
[1673226082921,1e-08,17201.0,17200.0,11.3462356]
[1673226085295,1e-08,17201.0,17200.0,3.5462356]
[1673226085803,1e-08,17201.0,17200.0,11.0462356]
[1673226086315,1e-08,17201.0,17200.0,11.3462356]
[1673226089169,1e-08,17201.0,17200.0,11.0462356]
[1673226090191,1e-08,17201.0,17200.0,3.5462356]
[1673226090463,1e-08,17201.0,17200.0,2.809369]
[1673226092027,1e-08,17201.0,17200.0,1.86268802]
[1673226092322,1e-08,17201.0,17200.0,2.22787202]
[1673226092586,1e-08,17201.0,17200.0,0.58129302]
[1673226093613,0.57377782,17202.0,17199.0,2.162857]
[1673226093872,0.57377782,17202.0,17199.0,2.18455539]
[1673226094135,0.70650312,17201.0,17199.0,1.0]
[1673226094401,1.95376363,17201.0,17199.0,1.0]
[1673226094658,1.42938733,17201.0,17199.0,1.0]
[1673226094980,1.64728571,17200.0,17199.0,1.0]
[1673226095166,1.99591918,17200.0,17199.0,1.0]
[1673226095402,2.28216028,17200.0,17199.0,0.0722]
[1673226095653,2.86355528,17200.0,17199.0,0.0722]
[1673226095898,3.53817315,17200.0,17199.0,0.0722]
[1673226096142,4.11956815,17200.0,17199.0,0.0722]
[1673226096417,3.94454751,17200.0,17199.0,0.0722]
[1673226096669,4.11956815,17200.0,17199.0,0.0722]
[1673226097696,3.77093468,17200.0,17199.0,0.0722]
[1673226098432,4.23977357,17200.0,17199.0,0.0722]
[1673226098677,3.77093468,17200.0,17199.0,0.0722]
[1673226099171,4.11868506,17200.0,17199.0,0.0722]
[1673226099419,4.45735076,17200.0,17199.0,0.0722]
[1673226099708,4.89314265,17200.0,17199.0,0.0722]
[1673226099972,3.94369865,17200.0,17199.0,0.0722]
[1673226100239,4.45735081,17200.0,17199.0,0.0722]
[1673226100712,3.59594827,17200.0,17199.0,0.0722]
[1673226101207,4.45735081,17200.0,17199.0,0.0722]
[1673226101456,4.97764357,17200.0,17199.0,0.0722]
[1673226101700,5.42071259,17200.0,17199.0,0.0722]
[1673226101944,4.87325902,17200.0,17199.0,0.0722]
[1673226102448,4.70710583,17200.0,17199.0,0.0722]
[1673226102697,4.70710583,17200.0,17199.0,0.1722]
[1673226103188,4.35960686,17200.0,17199.0,0.1722]
[1673226103677,4.87315855,17200.0,17199.0,0.1722]
[1673226103928,5.41277632,17200.0,17199.0,0.1722]
[1673226104179,5.2782073,17200.0,17199.0,0.1722]
[1673226104427,5.7123429,17200.0,17199.0,0.1722]
[1673226104912,5.4123429,17200.0,17199.0,0.1722]
[1673226105155,4.70646754,17200.0,17199.0,0.1722]
[1673226105418,4.5327968,17200.0,17199.0,0.1722]
[1673226106419,4.35910173,17200.0,17199.0,0.1722]
[1673226107934,3.39594187,17200.0,17199.0,0.1722]
[1673226108191,2.5229069,17200.0,17199.0,0.1722]
[1673226110209,2.34930787,17200.0,17199.0,0.1722]
[1673226111205,2.5229069,17200.0,17199.0,0.1722]
[1673226111709,3.03655906,17200.0,17199.0,0.1722]
[1673226111960,4.23789574,17200.0,17199.0,0.1722]
[1673226112241,3.39603588,17200.0,17199.0,0.1722]
[1673226112514,2.5229069,17200.0,17199.0,0.1722]
[1673226112751,2.34930787,17200.0,17199.0,0.1722]
[1673226114478,3.39603876,17200.0,17199.0,0.1722]
[1673226115742,2.5229069,17200.0,17199.0,0.17210302]
[1673226116755,1.65601287,17200.0,17199.0,0.17210302]
[1673226119499,2.23740787,17200.0,17199.0,0.17210302]
[1673226119757,3.65718175,17200.0,17199.0,0.17210302]
[1673226120043,3.39671689,17200.0,17199.0,0.17210302]
[1673226120283,3.65718175,17200.0,17199.0,0.17210302]
[1673226120524,3.39671689,17200.0,17199.0,0.17210302]
[1673226120771,2.81532189,17200.0,17199.0,0.17210302]
[1673226121029,3.65718175,17200.0,17199.0,0.17210302]
[1673226121561,12.81532189,17200.0,17199.0,0.17210302]
[1673226121780,13.39673081,17200.0,17199.0,0.17210302]
[1673226122031,13.65719567,17200.0,17199.0,0.17210302]
[1673226122278,14.17084783,17200.0,17199.0,0.17210302]
[1673226122523,14.4573429,17200.0,17199.0,0.17210302]
[1673226123250,15.0387379,17200.0,17199.0,0.17210302]
[1673226123493,15.21240864,17200.0,17199.0,0.17210302]
[1673226124014,15.47283889,17200.0,17199.0,0.17210302]
[1673226124277,15.9691752,17200.0,17199.0,0.17210302]
[1673226124508,15.44615607,17200.0,17199.0,0.17210302]
[1673226125252,15.9691752,17200.0,17199.0,0.17210302]
[1673226126228,15.44615607,17200.0,17199.0,0.17210302]
[1673226126484,14.85227894,17200.0,17199.0,0.17210302]
[1673226126732,15.37529807,17200.0,17199.0,0.17210302]
[1673226127233,14.85227894,17200.0,17199.0,0.17210302]
[1673226127475,15.37529807,17200.0,17199.0,0.17210302]
[1673226127753,15.9691752,17200.0,17199.0,0.17210302]
[1673226129263,15.37529807,17200.0,17199.0,0.17210302]
[1673226130259,14.85227894,17200.0,17199.0,0.17210302]
[1673226130804,15.44009054,17200.0,17199.0,0.17210302]
[1673226132272,14.85227894,17200.0,17199.0,0.17210302]
[1673226132800,14.64336478,17200.0,17199.0,0.17210302]
[1673226133060,16.15446358,17200.0,17199.0,0.17210302]
[1673226133308,16.74834071,17200.0,17199.0,0.17210302]
[1673226133840,15.23724191,17200.0,17199.0,0.17210302]
[1673226134334,15.2726586,17200.0,17199.0,0.17210302]
[1673226134594,16.78377222,17200.0,17199.0,0.17210302]
[1673226135081,16.10915435,17200.0,17199.0,0.17210302]
[1673226135354,17.96794588,17200.0,17199.0,0.17210302]
[1673226135599,18.2258584,17200.0,17199.0,0.17210302]
[1673226135854,18.14009448,17200.0,17199.0,0.17210302]
[1673226136113,17.58909595,17200.0,17199.0,0.17210302]
[1673226136377,18.1201675,17200.0,17199.0,0.17210302]
[1673226136624,18.03443372,17200.0,17199.0,0.17210302]
[1673226136893,18.15372616,17200.0,17199.0,0.17210302]
[1673226137127,16.65859237,17200.0,17199.0,0.17210302]
[1673226137387,14.40386534,17200.0,17199.0,0.17198719]
[1673226138452,14.9175175,17200.0,17199.0,0.17198719]
[1673226139245,14.32969291,17200.0,17199.0,0.17198719]
[1673226139502,14.92357004,17200.0,17199.0,0.17198719]
[1673226139750,15.22357004,17200.0,17199.0,0.17198719]
[1673226142193,15.25898673,17200.0,17199.0,0.17198719]
[1673226142448,15.37128673,17200.0,17199.0,0.17198719]
[1673226143248,15.42095489,17200.0,17199.0,0.17198719]
[1673226143505,17.01770096,17200.0,17199.0,0.17198719]
[1673226143757,17.29121073,17200.0,17199.0,0.17198719]
[1673226144024,17.81066721,17200.0,17199.0,0.17198719]
[1673226144272,0.04017599,17198.0,17195.0,1.00015]
[1673226144548,0.8129339,17196.0,17195.0,1.00015]
[1673226144809,3.65326713,17196.0,17195.0,1.00015]
[1673226145328,3.66176713,17196.0,17195.0,1.00015]
[1673226145613,2.2832197,17196.0,17195.0,1.00015]
[1673226145918,2.8647497,17196.0,17195.0,1.00015]
[1673226146419,2.34249053,17196.0,17195.0,1.00015]
[1673226147450,3.16463736,17196.0,17195.0,1.00015]
[1673226147696,2.64249053,17196.0,17195.0,1.00015]
[1673226148283,3.08939776,17196.0,17195.0,1.00015]
[1673226148474,3.08939776,17196.0,17195.0,1.0]
[1673226149934,2.86449776,17196.0,17195.0,1.0]
[1673226151496,2.33249053,17196.0,17195.0,1.0]
[1673226152259,2.85449776,17196.0,17195.0,1.0]
[1673226152731,0.4,17195.0,17194.0,0.00553338]
[1673226153035,1.94619989,17195.0,17194.0,0.00553338]
[1673226153228,2.34619989,17195.0,17194.0,0.00553338]
[1673226153738,1.99817641,17195.0,17194.0,0.00553338]
[1673226154723,1.563128,17195.0,17194.0,0.00553338]
[1673226156304,3.54882864,17195.0,17194.0,0.00553338]
[1673226157045,3.22337206,17195.0,17194.0,0.00553338]
[1673226158296,2.70136483,17195.0,17194.0,0.00553338]
[1673226161041,2.70136483,17195.0,17194.0,0.00053338]
[1673226161805,2.81306483,17195.0,17194.0,0.00053338]
[1673226164108,3.40032817,17195.0,17194.0,0.00053338]
[1673226164358,3.81058599,17195.0,17194.0,0.00053338]
[1673226164680,3.81908599,17195.0,17194.0,0.00053338]
[1673226164889,3.29712817,17195.0,17194.0,0.00053338]
[1673226165141,2.70986483,17195.0,17194.0,0.00053338]
[1673226165670,3.29712817,17195.0,17194.0,0.00053338]
[1673226166185,1.05574805,17194.0,17188.0,0.23226051]
[1673226166446,0.60988095,17191.0,17190.0,0.04971175]
[1673226166700,0.60988095,17191.0,17189.0,0.1128]
[1673226166946,0.17425119,17190.0,17189.0,0.1128]
[1673226167198,0.17425119,17190.0,17189.0,0.477984]
[1673226167700,0.43562874,17190.0,17189.0,0.477984]
[1673226167946,0.60988095,17190.0,17189.0,0.477984]
[1673226168195,0.60988095,17190.0,17189.0,0.1128]
[1673226168718,0.60988095,17190.0,17188.0,0.1128]
[1673226168963,0.43566647,17189.0,17187.0,0.694412]
[1673226169486,0.17426659,17189.0,17188.0,0.365184]
[1673226170219,0.43566647,17189.0,17188.0,0.365184]
[1673226171210,0.60990328,17189.0,17187.0,0.694412]
[1673226171452,0.60990328,17189.0,17188.0,0.365184]
[1673226171957,0.43563667,17189.0,17188.0,0.365184]
[1673226172221,0.17423679,17189.0,17188.0,0.365184]
[1673226173021,0.17423679,17189.0,17187.0,0.97138805]
[1673226173274,0.17423679,17189.0,17187.0,1.55320405]
[1673226173558,0.17423679,17189.0,17188.0,0.365184]
[1673226173798,0.43563667,17189.0,17188.0,0.365184]
[1673226174297,0.43563667,17189.0,17188.0,0.345184]
[1673226174551,0.83563667,17189.0,17188.0,0.345184]
[1673226175067,1.00990328,17189.0,17187.0,0.581816]
[1673226175290,0.17422207,17188.0,17187.0,0.581816]
[1673226175547,0.17422207,17188.0,17187.0,0.94700535]
[1673226175808,0.60990328,17189.0,17187.0,0.94700535]
[1673226175809,0.43562195,17189.0,17187.0,0.94700535]
[1673226176077,0.17422207,17189.0,17188.0,0.36497]
[1673226178114,0.43562195,17189.0,17187.0,0.93565322]
[1673226178355,0.43562195,17189.0,17187.0,0.112]
[1673226178683,0.17422207,17188.0,17187.0,0.112]
[1673226178896,0.43562195,17188.0,17187.0,0.112]
[1673226179116,0.43562195,17188.0,17187.0,0.47697]
[1673226179607,0.17422207,17188.0,17187.0,0.47697]
[1673226180109,0.43562195,17188.0,17187.0,0.47697]
[1673226180351,0.43562195,17188.0,17187.0,0.36497]
[1673226180836,0.43562195,17188.0,17187.0,0.39587]
[1673226181576,1.00990328,17188.0,17187.0,0.39587]
[1673226182305,1.00990328,17188.0,17187.0,0.0309]
[1673226182547,1.89631589,17188.0,17187.0,0.0309]
[1673226182801,2.12961349,17188.0,17187.0,0.0309]
[1673226183316,2.71141449,17188.0,17187.0,0.0309]
[1673226183575,3.1518139,17188.0,17187.0,0.0309]
[1673226184606,3.7626519,17188.0,17187.0,0.0309]
[1673226184867,3.7336149,17188.0,17187.0,0.0309]
[1673226185385,3.89294212,17188.0,17187.0,0.0309]
[1673226185640,3.89293794,17188.0,17187.0,0.0309]
[1673226185892,4.24119295,17188.0,17187.0,0.0309]
[1673226186264,3.89293794,17188.0,17187.0,0.0309]
[1673226186468,3.92197494,17188.0,17187.0,0.0309]
[1673226186720,3.89293794,17188.0,17184.0,0.02471]
[1673226186983,0.77412916,17186.0,17184.0,0.02471]
[1673226187512,0.77412916,17186.0,17185.0,0.36497]
[1673226187786,0.77412916,17186.0,17184.0,0.02471]
[1673226188576,0.6,17186.0,17184.0,0.02492939]
[1673226188859,0.77412916,17186.0,17185.0,0.36497]
[1673226189154,0.6,17186.0,17184.0,0.02471]
[1673226189672,0.6,17186.0,17185.0,0.36497]
[1673226190220,0.6,17186.0,17184.0,0.02471]
[1673226191268,1.181871,17186.0,17184.0,0.02471]
[1673226191828,1.35600016,17186.0,17184.0,0.02471]
[1673226192078,1.181871,17186.0,17183.0,0.87359486]
[1673226192584,1.181871,17186.0,17184.0,0.36497]
[1673226192833,1.181871,17186.0,17183.0,0.87359486]
[1673226193090,1.35600016,17186.0,17183.0,0.87359486]
[1673226193597,1.70440878,17186.0,17183.0,0.29164886]
[1673226193858,1.0,17185.0,17183.0,0.29164886]
[1673226194194,0.6,17185.0,17183.0,0.29164886]
[1673226194398,0.6,17185.0,17184.0,0.36497]
[1673226195366,0.6,17185.0,17183.0,0.87361686]
[1673226195864,0.6,17185.0,17184.0,0.36497]
[1673226196114,1.763804,17185.0,17183.0,0.29164886]
[1673226196361,2.163804,17185.0,17183.0,0.29164886]
[1673226196619,1.75603116,17185.0,17183.0,0.29164886]
[1673226197625,2.10671585,17185.0,17183.0,0.29164886]
[1673226198153,1.75603116,17185.0,17183.0,0.29128886]
[1673226198384,1.75603116,17185.0,17183.0,0.00752321]
[1673226199185,1.35603116,17185.0,17183.0,0.00752321]
[1673226199448,1.181902,17185.0,17184.0,0.36497]
[1673226199692,1.181902,17185.0,17183.0,0.00752321]
[1673226199933,1.181902,17185.0,17183.0,0.26518561]
[1673226200191,1.181902,17185.0,17184.0,0.36497]
[1673226201176,1.181902,17185.0,17183.0,0.26518561]
[1673226201932,1.75603116,17185.0,17184.0,0.36497]
[1673226202187,2.03688962,17185.0,17184.0,0.36497]
[1673226202438,2.03688962,17185.0,17183.0,0.26518561]
[1673226202674,2.03688962,17185.0,17183.0,0.43318561]
[1673226202921,0.6,17184.0,17183.0,0.43318561]
[1673226203196,0.6,17184.0,17183.0,0.79815561]
[1673226205482,0.6,17184.0,17183.0,0.54049321]
[1673226205753,0.6,17184.0,17183.0,0.17552321]
[1673226206264,0.6,17184.0,17183.0,0.54115438]
[1673226206529,0.6,17184.0,17183.0,0.54049321]
[1673226207077,0.5863,17184.0,17183.0,0.36497]
[1673226208851,0.5863,17184.0,17182.0,0.8496219]
[1673226209108,0.5863,17184.0,17182.0,0.82771519]
[1673226209456,0.5863,17184.0,17183.0,0.36497]
[1673226209865,0.5863,17184.0,17182.0,0.82771519]
[1673226210383,0.5863,17184.0,17183.0,0.36497]
[1673226210897,0.5863,17184.0,17182.0,0.82771519]
[1673226211402,0.5863,17184.0,17183.0,0.36497]
[1673226211649,0.5863,17184.0,17182.0,0.82771519]
[1673226211897,0.5863,17184.0,17182.0,0.24571319]
[1673226212178,0.5863,17184.0,17183.0,0.36497]
[1673226212417,0.5863,17184.0,17182.0,0.24571319]
[1673226212915,0.76042916,17184.0,17183.0,0.36497]
[1673226213181,0.76042916,17184.0,17182.0,0.82771319]
[1673226213709,1.02162289,17184.0,17182.0,0.82771319]
[1673226214504,1.02162289,17184.0,17183.0,0.36497]
[1673226214720,1.02162289,17184.0,17182.0,0.82771319]
[1673226215290,1.02162289,17184.0,17183.0,0.36497]
[1673226215546,1.02162289,17184.0,17182.0,0.82771319]
[1673226216373,1.02162289,17184.0,17183.0,0.36497]
[1673226216641,1.60355889,17184.0,17182.0,0.24571319]
[1673226216907,0.57431229,17183.0,17182.0,0.24571319]
[1673226217210,0.57431229,17183.0,17181.0,0.75835357]
[1673226217485,0.17431229,17182.0,17181.0,0.00681957]
[1673226217744,1.02180602,17182.0,17181.0,0.00681957]
[1673226218526,1.19575204,17182.0,17181.0,0.00681957]
[1673226219033,1.37012919,17182.0,17181.0,0.00681957]
[1673226219297,1.19575204,17182.0,17181.0,0.00681957]
[1673226219828,1.36991001,17182.0,17181.0,0.00681957]
[1673226220060,0.8479847,17182.0,17181.0,0.00681957]
[1673226220323,1.02243889,17182.0,17181.0,0.00681957]
[1673226220592,0.43613889,17183.0,17181.0,1.69059843]
[1673226220846,0.43613889,17183.0,17182.0,0.36497]
[1673226220847,0.17445419,17183.0,17182.0,0.36497]
[1673226221115,0.17445419,17183.0,17182.0,1.528978]
[1673226221365,1.19624301,17184.0,17182.0,1.8284226]
[1673226221366,0.43613889,17184.0,17182.0,1.8284226]
[1673226221618,0.17445419,17184.0,17183.0,0.76497]
[1673226221874,0.17445419,17184.0,17183.0,1.92891]
[1673226222128,0.43613889,17185.0,17183.0,2.13382669]
[1673226222393,0.17445419,17185.0,17184.0,0.53447]
[1673226222655,0.53560452,17186.0,17184.0,1.69842343]
[1673226222905,0.27391982,17186.0,17185.0,0.36497]
[1673226223164,0.27391982,17186.0,17185.0,1.867374]
[1673226223408,0.48613889,17186.0,17185.0,2.267374]
[1673226223918,0.48613889,17186.0,17185.0,2.097874]
[1673226224428,0.48609817,17186.0,17185.0,1.697874]
[1673226224933,0.48609817,17186.0,17185.0,2.097874]
[1673226225704,0.48609817,17186.0,17185.0,1.697874]
[1673226225705,0.83435648,17186.0,17185.0,1.697874]
[1673226225947,0.65994301,17186.0,17185.0,0.946872]
[1673226226209,0.4853517,17186.0,17185.0,0.581902]
[1673226226467,0.83415582,17186.0,17185.0,0.581902]
[1673226226972,0.8853517,17186.0,17185.0,0.581902]
[1673226227723,0.8853517,17186.0,17184.0,0.81741965]
[1673226227979,1.04646423,17185.0,17184.0,1.39933665]
[1673226228237,1.19673747,17185.0,17184.0,1.39933665]
[1673226228811,1.02232197,17185.0,17184.0,1.39933665]
[1673226230028,1.19673747,17185.0,17184.0,1.39933665]
[1673226230545,1.63276423,17185.0,17184.0,0.581917]
[1673226230846,1.63276423,17185.0,17183.0,0.581939]
[1673226230847,1.73603757,17185.0,17183.0,0.581939]
[1673226231093,0.78493521,17184.0,17182.0,0.83934582]
[1673226231360,1.01050978,17183.0,17182.0,0.83934582]
[1673226231624,1.77124133,17183.0,17182.0,0.83934582]
[1673226231874,1.02237872,17183.0,17182.0,0.83934582]
[1673226232125,1.02237872,17183.0,17182.0,1.78631982]
[1673226232890,0.76073167,17183.0,17182.0,1.78631982]
[1673226233396,0.76073167,17183.0,17182.0,2.18631982]
[1673226233669,0.76073167,17183.0,17182.0,2.76832382]
[1673226233670,0.5863,17183.0,17182.0,2.76832382]
[1673226234216,0.5863,17183.0,17182.0,2.18631982]
[1673226234494,0.17443167,17184.0,17182.0,2.18631982]
[1673226234794,0.17443167,17184.0,17183.0,0.76497]
[1673226235047,0.17443167,17184.0,17183.0,1.92891]
[1673226236513,0.17443167,17184.0,17183.0,1.52891]
[1673226236772,0.43607872,17184.0,17183.0,1.52891]
[1673226238570,0.17443167,17184.0,17183.0,1.52891]
[1673226239083,0.76073167,17184.0,17183.0,1.52891]
[1673226239596,0.17443167,17184.0,17183.0,1.52891]
[1673226239854,0.76073167,17184.0,17183.0,1.52891]
[1673226240118,0.76073167,17184.0,17183.0,1.16394]
[1673226240461,0.76073167,17184.0,17183.0,1.52891]
[1673226240633,0.5863,17184.0,17183.0,1.52891]
[1673226241149,0.5863,17184.0,17183.0,2.44382563]
[1673226242699,0.6363,17184.0,17183.0,3.14382563]
[1673226242957,0.05,17184.0,17183.0,3.14382563]
[1673226247324,0.26244,17184.0,17183.0,2.44885563]
[1673226247581,0.26237423,17184.0,17183.0,0.36497]
[1673226247838,0.69845295,17184.0,17183.0,0.35033867]
[1673226248360,0.69845295,17184.0,17181.0,1.53611882]
[1673226248361,1.27288401,17184.0,17182.0,0.4]
[1673226248362,1.44725623,17184.0,17182.0,0.4]
[1673226248625,1.44725623,17184.0,17181.0,1.53611882]
[1673226248626,0.17437449,17183.0,17181.0,1.53611882]
[1673226248885,0.76067449,17183.0,17182.0,0.365071]
[1673226249687,1.02232154,17183.0,17182.0,0.365071]
[1673226249944,1.02232154,17183.0,17181.0,0.69882357]
[1673226250189,0.1743765,17182.0,17181.0,0.69882357]
[1673226250741,1.42232355,17183.0,17181.0,1.06389457]
[1673226250950,1.42232355,17183.0,17182.0,0.365071]
[1673226251203,1.42232355,17183.0,17181.0,0.69882357]
[1673226251475,1.42232355,17183.0,17182.0,0.582004]
[1673226251996,1.92318082,17183.0,17182.0,0.582004]
[1673226252237,1.77123785,17183.0,17182.0,0.582004]
[1673226252493,0.93516273,17183.0,17182.0,0.582004]
[1673226252749,1.02220971,17183.0,17182.0,1.164008]
[1673226253002,0.76066202,17183.0,17182.0,1.564008]
[1673226253265,0.76066202,17183.0,17182.0,1.529079]
[1673226253505,0.76066202,17183.0,17182.0,1.164008]
[1673226253750,1.02220971,17183.0,17182.0,1.164008]